[Event "Polish Youth 1st League 2022"]
[Site "Lublin"]
[Date "2022.06.30"]
[Round "6.13"]
[White "Suder, Jakub"]
[Black "Wieczorek, Mikolaj"]
[Result "1-0"]
[ECO "A40"]
[WhiteElo "2306"]
[BlackElo "1942"]
[Annotator "TA"]
[PlyCount "111"]
[EventDate "2022.06.24"]
[EventType "team-tourn"]
[EventCountry "POL"]
[SourceTitle "playchess.com"]
[Source "ChessBase"]
[SourceQuality "1"]
[TimeControl "40/5400+30:1800+30"]

{[%evp 12,111,62,44,70,58,72,62,68,26,41,20,63,53,60,61,114,96,88,92,89,76,71,52,63,59,46,9,23,-21,-23,-25,91,100,79,98,91,67,90,88,72,62,40,32,271,285,282,0,47,93,394,367,366,379,357,345,305,0,0,0,1897,1836,1852,1735,1085,908,885,816,1889,1835,1722,1671,1425,1229,948,912,2504,2504,1359,1365,6339,5760,5422,5399,1847,1542,1379,1344,29972,29973,29978,29979,29979,29978,29978,29971,29978,29979,29977,29971,4132,0]} 1. d4 {[%emt 0:00:07]} e6 {[%emt 0:00:05]} 2. c4 {[%emt 0:00:05]} c5 {[%emt 0:00:04]} 3. d5 {[%emt 0:00:03]} exd5 {[%emt 0:00:04]} 4. cxd5 {[%emt 0:00:05]} d6 {[%emt 0:00:03]} 5. Nc3 {[%emt 0:00:06]} g6 {[%emt 0:00:03]} 6. e4 {[%emt 0:00:16]} Bg7 {[%emt 0:00:04]} 7. Nf3 {[%emt 0:00:29]} Ne7 {[%emt 0:01:40] A43: Schmid Benoni.} 8. Bf4 {[%emt 0:04:24]} a6 {[%emt 0:00:21] Against Nb5} 9. a4 {[%emt 0:01:08]} O-O {[%emt 0:00:11] White is slightly better.} 10. Bc4 {[%emt 0:03:09]} Bg4 {[%emt 0:18:01]} 11. O-O {[%emt 0:01:47] [#]} Bxf3 $146 {[%emt 0:01:38]} ({Predecessor:} 11... Nc8 12. h3 Qf6 13. Be3 Bxf3 14. Qxf3 Qxf3 15. gxf3 f5 16. f4 Bxc3 17. bxc3 fxe4 {0-1 (50) Juptner,J (2229)-Vokac,M (2507) Plzen 2001}) 12. Qxf3 {[%emt 0:00:09]} Qc7 {[%emt 0:00:13]} 13. Qg3 {[%emt 0:01:42]} Rd8 {[%emt 0:02:19]} (13... Nc8 $1 $14) 14. h4 {[%emt 0:02:43][%cal Bh2h4,Bh4h5,Bh5h6][%mdl 32]} Nc8 {[%emt 0:03:24]} 15. h5 {[%emt 0:02:16]} Nd7 {[%emt 0:00:28]} 16. h6 {[%emt 0:01:39]} Bh8 {[%emt 0:01:38]} 17. Rae1 {[%emt 0:06:59] 0x0.002229f05fcadp-1022s more active pieces. The black rooks are badly placed.} Re8 {[%emt 0:08:39]} 18. Kh1 {[%emt 0:01:45]} Qb6 {[%emt 0:07:03]} 19. Bc1 {[%emt 0:03:24]} Qb4 $1 {[%emt 0:02:11]} 20. Ba2 {[%emt 0:03:11]} Ncb6 {[%emt 0:02:33]} 21. f4 {[%emt 0:02:04][%cal Oe4e5]} (21. Qxd6 $2 Be5 22. Qxe5 Nxe5 $19) 21... Nxa4 {[%emt 0:01:58]} (21... Bxc3 $11 {keeps the balance.} 22. bxc3 Qxa4) 22. e5 $1 $16 {[%emt 0:01:23]} Nxc3 {[%emt 0:00:52]} (22... dxe5 $2 23. Re4 c4 24. Rxc4 exf4 25. Qxf4 $18) 23. bxc3 {[%emt 0:00:44]} Qa4 {[%emt 0:00:24]} 24. Bb1 {[%emt 0:02:13] Strongly threatening e6.} dxe5 {[%emt 0:01:18]} 25. f5 {[%emt 0:09:11][%cal Rf5g6]} e4 {[%emt 0:00:22]} 26. fxg6 {[%emt 0:01:25]} fxg6 {[%emt 0:00:12]} 27. Bg5 {[%emt 0:08:04]} (27. Qf4 Rf8 28. Qxe4 Qxe4 29. Bxe4 Bxc3 $17) 27... Qb5 $2 {[%emt 0:16:43]} ({Black should play} 27... Rf8 $14) 28. c4 $18 {[%emt 0:05:53]} Qb6 {[%emt 0:03:14]} (28... Qxc4 29. Qd6 Qa4 30. Be7 $18) 29. Rxe4 {[%emt 0:04:18]} (29. Bxe4 $18 {aiming for d6.} Be5 30. Qf3) 29... Rxe4 {[%emt 0:04:32]} (29... Be5 $1 $11 30. Qg4 Rf8) 30. Bxe4 $40 {[%emt 0:00:08][%mdl 128] White wants a kill.} Be5 $2 {[%emt 0:02:14][%mdl 8192]} (30... Rf8 $16 {is more resistant.} 31. Rd1 (31. Rxf8+ Kxf8 32. Qf3+ Ke8 $11) 31... Re8) 31. Qg4 $18 {[%emt 0:01:52]} Rf8 {[%emt 0:05:52]} 32. Rxf8+ {[%emt 0:00:41]} Nxf8 {[%emt 0:00:38] [#]} 33. d6 $1 {[%emt 0:01:59] Qc8 would kill now.} Qa5 {[%emt 0:01:41][%cal Ra5e1]} 34. Qd1 {[%emt 0:03:09] Inhibits Qe1+.} ({Better is} 34. g3 $18 {Intending d7 and mate.} Qa1+ 35. Kg2 Qa2+ 36. Kh3 Qxc4 37. d7) 34... Qc3 $1 $11 {[%emt 0:02:30] Threatens to win with ...Qg3.} 35. Qf1 {[%emt 0:10:16] White wants to mate with Bd5+.} ({But not} 35. Bxb7 $2 Qg3 36. Bd5+ Kh8 $19) (35. d7 $2 {[#]} Nxd7 $1 {[%mdl 512]} 36. Kg1 (36. Bd5+ Kh8 $17) 36... Qg3 $17) 35... Qa1 $2 {[%emt 0:01:08][%mdl 8192]} (35... Nd7 $11 36. Bd5+ Kh8) 36. Bd5+ $18 {[%emt 0:00:22] This bishop pair is nice.} Kh8 {[%emt 0:00:04]} 37. Qxa1 {[%emt 0:00:15]} Bxa1 {[%emt 0:00:04][%mdl 4096] Endgame KBB-KBN} 38. Be7 {[%emt 0:00:12]} Nd7 {[%emt 0:01:03]} 39. Bxb7 {[%emt 0:01:03]} a5 {[%emt 0:00:54]} 40. Bc8 {[%emt 0:00:00]} Nb6 {[%emt 0:00:00]} 41. d7 {[%emt 0:01:33]} Nxd7 {[%emt 0:00:14]} 42. Bxd7 {[%emt 0:00:08]} Bd4 {[%emt 0:00:04]} 43. Bd8 {[%emt 0:01:01]} Be3 {[%emt 0:00:52]} 44. Be6 {[%emt 0:00:12][%cal Rd8f6]} Bxh6 {[%emt 0:00:14]} 45. Bxa5 {[%emt 0:00:19] Hoping for Kg1.} Bg7 {[%emt 0:00:15]} 46. Kh2 {[%emt 0:01:10]} Be5+ {[%emt 0:00:16]} 47. Kh3 {[%emt 0:00:12] Kg4 is the strong threat.} Kg7 {[%emt 0:00:04]} 48. Bd8 {[%emt 0:00:41] Black must now prevent Kg4.} h6 {[%emt 0:00:50]} 49. Be7 {[%emt 0:00:13] White threatens Kg4 and mate.} Bd4 {[%emt 0:00:05]} 50. Kg4 {[%emt 0:00:08]} h5+ {[%emt 0:00:24]} 51. Kf4 {[%emt 0:00:18]} Kh6 {[%emt 0:00:11]} 52. Bf8+ {[%emt 0:00:08]} Kh7 {[%emt 0:00:04]} 53. Bf7 {[%emt 0:00:10]} Bg1 {[%emt 0:00:32]} 54. Ke4 {[%emt 0:00:27]} h4 {[%emt 0:00:04]} 55. Kf4 {[%emt 0:00:15]} Bf2 {[%emt 0:00:02]} 56. Ke4 $2 {[%mdl 32768] Weighted Error Value: White=0.27 (precise) /Black=0.43. Sensor Board Error (Ke4/e5)?} (56. Kg5 $18 Bd4 57. Bxg6+ Kg8 58. Bd6) 1-0

[Event "Polish Youth 1st League 2022"]
[Site "Lublin"]
[Date "2022.06.30"]
[Round "6.14"]
[White "Halhoul, Adam"]
[Black "Dziewonski, Dariusz"]
[Result "0-1"]
[ECO "D31"]
[WhiteElo "1675"]
[BlackElo "1976"]
[Annotator "RC"]
[PlyCount "58"]
[EventDate "2022.06.24"]
[EventType "team-tourn"]
[EventCountry "POL"]
[SourceTitle "playchess.com"]
[Source "ChessBase"]
[SourceQuality "1"]
[TimeControl "40/5400+30:1800+30"]

1. d4 {[%emt 0:00:10]} d5 {[%emt 0:00:08]} 2. c4 {[%emt 0:00:20]} e6 {[%emt 0:00:03]} 3. Nc3 {[%emt 0:00:08]} c6 {[%emt 0:00:05]} 4. e4 {[%emt 0:03:43]} dxe4 {[%emt 0:00:13]} 5. Nxe4 {[%emt 0:00:06]} Bb4+ {[%emt 0:00:04]} 6. Bd2 {[%emt 0:01:24]} Qxd4 {[%emt 0:00:07]} 7. Bxb4 {[%emt 0:00:06]} Qxe4+ {[%emt 0:00:04]} 8. Be2 {[%emt 0:00:12]} Na6 {[%emt 0:00:08]} 9. Bd6 {[%emt 0:08:14]} Qxg2 {[%emt 0:02:10]} 10. Qd2 {[%emt 0:10:24]} Nf6 {[%emt 0:13:27]} 11. Bf3 {[%emt 0:04:06]} Qg6 {[%emt 0:00:47]} 12. Ne2 {[%emt 0:01:01]} e5 {[%emt 0:38:05]} 13. Ng3 {[%emt 0:35:33]} Bg4 {[%emt 0:08:04]} 14. Bxg4 {[%emt 0:24:51]} Qxg4 {[%emt 0:08:26]} 15. c5 {[%emt 0:03:33]} O-O-O {[%emt 0:07:07]} 16. Qc2 {[%emt 0:02:33]} Nb4 {[%emt 0:03:30]} 17. Qb3 {[%emt 0:01:15]} Nbd5 {[%emt 0:01:31]} 18. O-O {[%emt 0:00:53]} h5 {[%emt 0:02:11]} 19. Qa3 {[%emt 0:00:19]} h4 {[%emt 0:05:05]} 20. Qxa7 {[%emt 0:00:49]} hxg3 {[%emt 0:00:30]} 21. Qb8+ {[%emt 0:00:11]} Kd7 {[%emt 0:00:04]} 22. Qxb7+ {[%emt 0:00:05]} Ke6 {[%emt 0:00:16]} 23. f4 {[%emt 0:01:13]} gxh2+ {[%emt 0:03:33]} 24. Kh1 {[%emt 0:00:00]} Ne4 {[%emt 0:02:08]} 25. f5+ {[%emt 0:01:11]} Kf6 {[%emt 0:00:04]} 26. Bxe5+ {[%emt 0:00:32]} Kxe5 {[%emt 0:00:07]} 27. Rae1 {[%emt 0:00:06]} Kf6 {[%emt 0:01:47]} 28. Qxc6+ {[%emt 0:00:29]} Rd6 {[%emt 0:01:40]} 29. Rf2 {[%emt 0:00:18]} Nxf2# {[%emt 0:00:08]} 0-1

[Event "Polish Youth 1st League 2022"]
[Site "Lublin"]
[Date "2022.06.30"]
[Round "6.15"]
[White "Maj, Samuel"]
[Black "Nagly, Wojciech"]
[Result "0-1"]
[ECO "E04"]
[WhiteElo "1906"]
[BlackElo "1464"]
[Annotator "NA RC"]
[PlyCount "188"]
[EventDate "2022.06.24"]
[EventType "team-tourn"]
[EventCountry "POL"]
[SourceTitle "playchess.com"]
[Source "ChessBase"]
[SourceQuality "1"]
[TimeControl "40/5400+30:1800+30"]

1. d4 {[%emt 0:00:05]} Nf6 {[%emt 0:00:05]} 2. c4 {[%emt 0:00:07]} e6 {[%emt 0:00:17]} 3. g3 {[%emt 0:00:16]} d5 {[%emt 0:00:09]} 4. Bg2 {[%emt 0:00:16]} dxc4 {[%emt 0:00:08]} 5. Nf3 {[%emt 0:00:26]} c5 {[%emt 0:00:17]} 6. O-O {[%emt 0:00:14]} Nc6 {[%emt 0:00:20]} 7. dxc5 {[%emt 0:00:19]} Qxd1 {[%emt 0:00:26]} 8. Rxd1 {[%emt 0:00:03]} Bxc5 {[%emt 0:00:07]} 9. Nbd2 {[%emt 0:00:05]} c3 {[%emt 0:22:35]} 10. bxc3 {[%emt 0:00:02]} O-O {[%emt 0:00:32]} 11. Nb3 {[%emt 0:00:10]} Bb6 {[%emt 0:00:32]} 12. c4 {[%emt 0:00:16]} a5 {[%emt 0:02:35]} 13. Ba3 {[%emt 0:11:46]} Re8 {[%emt 0:01:52]} 14. c5 {[%emt 0:02:32]} Bc7 {[%emt 0:00:34]} 15. Nbd4 {[%emt 0:03:42]} e5 {[%emt 0:01:50]} 16. Nb5 {[%emt 0:02:17]} Bb8 {[%emt 0:01:22]} 17. Bb2 {[%emt 0:05:49]} Bg4 {[%emt 0:02:50]} 18. h3 {[%emt 0:02:45]} Bxf3 {[%emt 0:03:01]} 19. Bxf3 {[%emt 0:00:45]} e4 {[%emt 0:00:29]} 20. Bg2 {[%emt 0:02:43]} Be5 {[%emt 0:00:37]} 21. Bxe5 {[%emt 0:01:41]} Rxe5 {[%emt 0:00:08]} 22. Rac1 {[%emt 0:02:12]} ({Better is} 22. Nd6 $16) 22... h6 {[%emt 0:05:43]} (22... Ne8 $142) 23. Nd6 {[%emt 0:03:52]} Rb8 {[%emt 0:07:11]} 24. Rc4 {[%emt 0:04:45]} Nb4 {[%emt 0:03:36]} 25. a3 {[%emt 0:06:51]} Na6 {[%emt 0:00:19]} 26. Rdc1 {[%emt 0:02:07]} ({Don't take} 26. Bxe4 Nxc5 27. Bd5 Ne6 $14) ({Don't do} 26. Nxe4 $6 Nxe4 27. Bxe4 Nxc5 $14) 26... Kf8 {[%emt 0:15:21]} 27. c6 {[%emt 0:07:58]} ({Of course not} 27. Nxe4 $6 Nxe4 28. Bxe4 (28. Rxe4 Rxc5 29. Rec4 b6 $11) 28... Nxc5 29. Rxc5 Rxe4 $11) (27. e3 $142) 27... b5 {[%emt 0:03:57]} 28. Rd4 {[%emt 0:04:16]} Nc7 {[%emt 0:00:43]} 29. e3 {[%emt 0:08:49]} b4 {[%emt 0:04:57]} 30. axb4 {[%emt 0:06:27]} axb4 {[%emt 0:04:21]} 31. Nxe4 {[%emt 0:02:03]} b3 {[%emt 0:02:51]} 32. Nxf6 {[%emt 0:01:14]} gxf6 {[%emt 0:00:01]} 33. Rd7 {[%emt 0:02:14]} b2 {[%emt 0:01:46]} 34. Rb1 {[%emt 0:01:47]} Rc5 {[%emt 0:00:54]} 35. Rdd1 {[%emt 0:01:11]} Rb4 {[%emt 0:02:04]} 36. Bf1 {[%emt 0:04:52]} Rxc6 {[%emt 0:04:03]} 37. Rd2 {[%emt 0:00:18]} Rcb6 {[%emt 0:00:39]} 38. Rc2 {[%emt 0:00:53]} Ne6 {[%emt 0:02:16]} 39. Bc4 {[%emt 0:02:14]} Ng5 {[%emt 0:01:07]} 40. h4 {[%emt 0:00:00]} Nf3+ {[%emt 0:00:00]} 41. Kg2 {[%emt 0:02:33]} Rxc4 {[%emt 0:05:04]} 42. Rxc4 {[%emt 0:01:24]} Nd2 {[%emt 0:00:22]} 43. Rxb2 {[%emt 0:01:35]} Rxb2 {[%emt 0:00:01]} 44. Rf4 {[%emt 0:00:22]} Ke7 {[%emt 0:00:22]} 45. Ra4 {[%emt 0:00:42]} (45. g4 {was necessary.}) 45... Rc2 {[%emt 0:06:26]} 46. Ra7+ {[%emt 0:03:37]} Ke6 {[%emt 0:00:43]} 47. Ra6+ {[%emt 0:00:49]} Kf5 {[%emt 0:01:01]} 48. Ra5+ {[%emt 0:01:40]} Kg6 {[%emt 0:00:25]} 49. Ra4 {[%emt 0:00:47]} f5 {[%emt 0:02:03]} 50. Rf4 {[%emt 0:04:27]} Nc4 {[%emt 0:00:52]} 51. e4 {[%emt 0:02:20]} fxe4 {[%emt 0:08:02]} 52. Rxe4 {[%emt 0:00:12]} f6 {[%emt 0:01:51]} 53. Rg4+ {[%emt 0:02:26]} Kf5 {[%emt 0:00:50]} 54. Rf4+ {[%emt 0:00:20]} Ke5 {[%emt 0:00:31]} 55. Rf3 {[%emt 0:01:10]} f5 {[%emt 0:05:33]} 56. Rb3 {[%emt 0:01:59]} Nd6 {[%emt 0:07:03]} 57. Re3+ {[%emt 0:03:05]} Ne4 {[%emt 0:00:53]} 58. Rf3 {[%emt 0:01:24]} h5 {[%emt 0:01:49]} 59. Rf4 {[%emt 0:00:51]} Rc3 {[%emt 0:00:26]} 60. Kh2 {[%emt 0:01:12]} Nd2 {[%emt 0:01:40]} 61. Ra4 {[%emt 0:03:09]} Rc4 {[%emt 0:00:50]} 62. Ra5+ {[%emt 0:01:06]} Ke4 {[%emt 0:00:30]} 63. Kg2 {[%emt 0:01:01]} Rc2 {[%emt 0:01:08]} 64. Ra4+ {[%emt 0:02:47]} Nc4 {[%emt 0:00:20]} 65. Ra1 {[%emt 0:05:05]} Ne3+ {[%emt 0:00:53]} 66. Kg1 {[%emt 0:00:45]} Kf3 {[%emt 0:00:39]} 67. fxe3 $17 {[%emt 0:02:01]} Kxg3 {[%emt 0:00:12]} 68. Rf1 {[%emt 0:00:45]} Rg2+ {[%emt 0:00:14]} 69. Kh1 {[%emt 0:00:02]} Rf2 {[%emt 0:00:18]} 70. Re1 {[%emt 0:00:35]} Kxh4 {[%emt 0:01:14]} 71. e4 {[%emt 0:01:18]} f4 {[%emt 0:00:15]} 72. e5 {[%emt 0:01:16]} f3 {[%emt 0:00:28]} 73. e6 {[%emt 0:00:51]} Re2 {[%emt 0:00:38]} 74. Rf1 {[%emt 0:00:33]} Kg3 {[%emt 0:00:17]} 75. Rg1+ {[%emt 0:00:16]} Kh3 {[%emt 0:00:33]} 76. Rd1 {[%emt 0:01:01]} Rxe6 {[%emt 0:00:14]} 77. Kg1 {[%emt 0:00:25]} Kg3 {[%emt 0:00:15]} 78. Kf1 {[%emt 0:00:13]} Ra6 {[%emt 0:00:29]} 79. Ke1 {[%emt 0:00:18]} h4 {[%emt 0:00:12]} 80. Kf1 {[%emt 0:00:42]} h3 {[%emt 0:00:04]} 81. Kg1 {[%emt 0:00:14]} Re6 {[%emt 0:00:12]} 82. Kh1 {[%emt 0:00:27]} Re3 {[%emt 0:00:18]} 83. Rg1+ {[%emt 0:00:11]} Kf2 {[%emt 0:01:21]} 84. Kh2 {[%emt 0:00:50]} Ke2 {[%emt 0:00:26]} 85. Ra1 {[%emt 0:00:09]} f2 {[%emt 0:01:14]} 86. Rb1 {[%emt 0:00:37]} Rd3 {[%emt 0:00:28]} 87. Rb8 {[%emt 0:00:39]} f1=Q {[%emt 0:00:59]} 88. Re8+ {[%emt 0:00:48]} Re3 {[%emt 0:00:33]} 89. Rg8 {[%emt 0:00:18]} Qf4+ {[%emt 0:00:21]} 90. Kh1 {[%emt 0:00:10]} Qe4+ {[%emt 0:00:15]} 91. Kh2 {[%emt 0:00:17]} Qe5+ {[%emt 0:00:13]} 92. Kh1 {[%emt 0:00:25]} Qd5+ {[%emt 0:00:05]} 93. Kh2 {[%emt 0:00:28]} Qxg8 {[%emt 0:00:10]} 94. Kh1 {[%emt 0:00:01]} Qg2# {[%emt 0:00:09]} 0-1

[Event "Polish Youth 1st League 2022"]
[Site "Lublin"]
[Date "2022.06.30"]
[Round "6.16"]
[White "Gibala, Adam"]
[Black "Jamrozik, Maciej"]
[Result "1-0"]
[ECO "B01"]
[WhiteElo "1516"]
[BlackElo "1251"]
[Annotator "NA RC"]
[PlyCount "55"]
[EventDate "2022.06.24"]
[EventType "team-tourn"]
[EventCountry "POL"]
[SourceTitle "playchess.com"]
[Source "ChessBase"]
[SourceQuality "1"]
[TimeControl "40/5400+30:1800+30"]

1. e4 {[%emt 0:00:02]} d5 {[%emt 0:00:06]} 2. exd5 {[%emt 0:00:05]} Qxd5 {[%emt 0:00:03]} 3. Nc3 {[%emt 0:00:12]} Qd6 {[%emt 0:00:08]} 4. d4 {[%emt 0:00:09]} Nf6 {[%emt 0:00:12]} 5. Nf3 {[%emt 0:00:25]} a6 {[%emt 0:00:08]} 6. Be3 {[%emt 0:00:16]} Nc6 {[%emt 0:01:48]} 7. Qd2 {[%emt 0:06:11]} Bf5 {[%emt 0:05:04]} 8. Bd3 {[%emt 0:02:26]} Bg6 {[%emt 0:01:41]} 9. Bxg6 {[%emt 0:00:35]} hxg6 {[%emt 0:00:11]} 10. O-O-O {[%emt 0:00:25]} O-O-O {[%emt 0:00:36]} 11. Ng5 {[%emt 0:01:09]} Qd7 {[%emt 0:23:41]} 12. Nxf7 {[%emt 0:00:27]} Qe8 {[%emt 0:01:22]} 13. Nxd8 {[%emt 0:00:32]} Qxd8 {[%emt 0:00:07]} 14. d5 {[%emt 0:00:07]} Ne5 {[%emt 0:00:30]} 15. Qd4 {[%emt 0:00:36]} Neg4 {[%emt 0:01:57]} 16. Qa7 {[%emt 0:01:30]} Nxe3 {[%emt 0:00:19]} 17. fxe3 {[%emt 0:00:12]} Ng4 {[%emt 0:01:07]} 18. Ne4 {[%emt 0:01:03]} b6 {[%emt 0:07:41]} 19. Qxa6+ {[%emt 0:00:43]} Kd7 {[%emt 0:00:35]} 20. Qa4+ {[%emt 0:00:07]} Kc8 {[%emt 0:00:13]} 21. Nc5 {[%emt 0:00:32]} bxc5 {[%emt 0:00:37]} 22. Qxg4+ {[%emt 0:00:11]} Kb8 {[%emt 0:00:08]} 23. Rd3 {[%emt 0:00:13]} c4 {[%emt 0:00:34]} 24. Qxc4 {[%emt 0:00:06]} Kc8 {[%emt 0:00:48]} 25. Qa6+ {[%emt 0:00:15]} Kd7 {[%emt 0:01:30]} 26. Qc6+ {[%emt 0:00:01]} Kc8 {[%emt 0:00:16]} 27. Ra3 {[%emt 0:00:01]} Qxd5 {[%emt 0:05:59]} 28. Ra8# {[%emt 0:00:01]} 1-0

[Event "Polish Youth 1st League 2022"]
[Site "Lublin"]
[Date "2022.06.30"]
[Round "6.17"]
[White "Uliasz, Katarzyna"]
[Black "Starosta, Martyna"]
[Result "1/2-1/2"]
[ECO "A15"]
[WhiteElo "1526"]
[BlackElo "1918"]
[Annotator "RC"]
[PlyCount "160"]
[EventDate "2022.06.24"]
[EventType "team-tourn"]
[EventCountry "POL"]
[SourceTitle "playchess.com"]
[Source "ChessBase"]
[SourceQuality "1"]
[TimeControl "40/5400+30:1800+30"]

1. c4 {[%emt 0:00:17]} Nf6 {[%emt 0:00:30]} 2. g3 {[%emt 0:00:12]} e5 {[%emt 0:01:14]} 3. Bg2 {[%emt 0:00:08]} d5 {[%emt 0:00:14]} 4. cxd5 {[%emt 0:00:05]} Nxd5 {[%emt 0:00:03]} 5. Nf3 {[%emt 0:00:07]} Nc6 {[%emt 0:00:05]} 6. Nc3 {[%emt 0:00:07]} Nb6 {[%emt 0:00:05]} 7. O-O {[%emt 0:00:08]} Be7 {[%emt 0:00:14]} 8. d3 {[%emt 0:00:15]} O-O {[%emt 0:00:10]} 9. a3 {[%emt 0:00:46]} Re8 {[%emt 0:00:14]} 10. b4 {[%emt 0:00:25]} Bf8 {[%emt 0:00:13]} 11. Bg5 {[%emt 0:03:00]} f6 {[%emt 0:01:13]} 12. Bd2 {[%emt 0:02:17]} Be6 {[%emt 0:05:49]} 13. Ne4 {[%emt 0:07:14]} Nd4 {[%emt 0:03:49]} 14. Nxd4 {[%emt 0:04:10]} exd4 {[%emt 0:00:09]} 15. Nc5 {[%emt 0:02:30]} Bd5 {[%emt 0:21:05]} 16. Nxb7 {[%emt 0:03:36]} Qd7 {[%emt 0:05:40]} 17. Na5 {[%emt 0:02:41]} Bxg2 {[%emt 0:07:49]} 18. Kxg2 {[%emt 0:00:04]} Re5 {[%emt 0:00:22]} 19. e4 {[%emt 0:05:15]} dxe3 {[%emt 0:03:54]} 20. Bxe3 {[%emt 0:00:12]} h5 {[%emt 0:04:39]} 21. d4 {[%emt 0:03:46]} Rf5 {[%emt 0:02:42]} 22. Qb3+ {[%emt 0:03:01]} Nd5 {[%emt 0:03:02]} 23. Qc4 {[%emt 0:02:18]} Re8 {[%emt 0:04:23]} 24. Rae1 {[%emt 0:01:57]} h4 {[%emt 0:07:24]} 25. Bd2 {[%emt 0:05:57]} Rxe1 {[%emt 0:09:35]} 26. Rxe1 {[%emt 0:00:35]} Qf7 {[%emt 0:01:54]} 27. Qe2 {[%emt 0:04:01]} Qg6 {[%emt 0:03:33]} 28. Qe6+ {[%emt 0:03:40]} Kh7 {[%emt 0:00:22]} 29. Re4 {[%emt 0:02:03]} hxg3 {[%emt 0:03:16]} 30. Rh4+ {[%emt 0:02:16]} Rh5 {[%emt 0:00:04]} 31. Rxh5+ {[%emt 0:00:04]} Qxh5 {[%emt 0:00:03]} 32. hxg3 {[%emt 0:00:21]} Nb6 {[%emt 0:03:21]} 33. Qh3 {[%emt 0:02:47]} Qxh3+ {[%emt 0:00:54]} 34. Kxh3 {[%emt 0:00:01]} a6 {[%emt 0:00:27]} 35. Kg4 {[%emt 0:01:14]} Kg6 {[%emt 0:00:03]} 36. Kf4 {[%emt 0:02:44]} Kf7 {[%emt 0:00:58]} 37. Ke4 {[%emt 0:00:49]} Ke6 {[%emt 0:00:06]} 38. Nc6 {[%emt 0:04:49]} Nc4 {[%emt 0:01:42]} 39. d5+ {[%emt 0:01:44]} Kd7 {[%emt 0:01:01]} 40. Bc1 {[%emt 0:00:00]} Kc8 {[%emt 0:00:00]} 41. Kd4 {[%emt 0:03:10]} Nd6 {[%emt 0:02:15]} 42. g4 {[%emt 0:02:27]} Nf7 {[%emt 0:01:41]} 43. Ke4 {[%emt 0:04:49]} Nd6+ {[%emt 0:00:31]} 44. Kd3 {[%emt 0:01:04]} Nf7 {[%emt 0:03:15]} 45. f3 {[%emt 0:03:33]} Kb7 {[%emt 0:02:09]} 46. Be3 {[%emt 0:02:18]} Kc8 {[%emt 0:01:23]} 47. Bc5 {[%emt 0:04:48]} Bd6 {[%emt 0:01:35]} 48. Bxd6 {[%emt 0:04:04]} Nxd6 {[%emt 0:00:11]} 49. a4 {[%emt 0:00:32]} Nf7 {[%emt 0:02:31]} 50. f4 {[%emt 0:08:08]} Nh6 {[%emt 0:02:20]} 51. g5 {[%emt 0:00:08]} Nf5 {[%emt 0:00:15]} 52. Nd4 {[%emt 0:04:01]} Nd6 {[%emt 0:00:34]} 53. Ne6 {[%emt 0:01:07]} fxg5 {[%emt 0:00:31]} 54. fxg5 {[%emt 0:00:22]} Nf7 {[%emt 0:00:12]} 55. Nxg7 {[%emt 0:01:46]} Nxg5 {[%emt 0:00:04]} 56. Ne6 {[%emt 0:00:23]} Nf7 {[%emt 0:02:10]} 57. Nc5 {[%emt 0:00:32]} a5 {[%emt 0:00:26]} 58. bxa5 {[%emt 0:01:20]} c6 {[%emt 0:01:13]} 59. a6 {[%emt 0:00:55]} Kb8 {[%emt 0:00:31]} 60. dxc6 {[%emt 0:00:20]} Ne5+ {[%emt 0:00:13]} 61. Ke4 {[%emt 0:02:25]} Nxc6 {[%emt 0:00:17]} 62. Kd5 {[%emt 0:00:07]} Nb4+ {[%emt 0:05:44]} 63. Kc4 {[%emt 0:00:15]} Nc2 {[%emt 0:03:09]} 64. Ne6 {[%emt 0:01:49]} Ka7 {[%emt 0:00:52]} 65. Nc5 {[%emt 0:01:10]} Na3+ {[%emt 0:02:46]} 66. Kb3 {[%emt 0:00:46]} Nb1 {[%emt 0:00:02]} 67. Kb4 {[%emt 0:07:12]} Nd2 {[%emt 0:00:28]} 68. Kb5 {[%emt 0:01:00]} Nb1 {[%emt 0:00:30]} 69. Ka5 {[%emt 0:00:59]} Nd2 {[%emt 0:02:42]} 70. Ne6 {[%emt 0:00:59]} Nc4+ {[%emt 0:01:31]} 71. Kb4 {[%emt 0:00:22]} Nd6 {[%emt 0:01:08]} 72. Kc5 {[%emt 0:01:01]} Ne4+ {[%emt 0:00:43]} 73. Kb5 {[%emt 0:00:31]} Nc3+ {[%emt 0:00:23]} 74. Ka5 {[%emt 0:00:24]} Nxa4 {[%emt 0:01:56]} 75. Nc7 {[%emt 0:00:43]} Nc3 {[%emt 0:01:10]} 76. Ne8 {[%emt 0:02:16]} Nd5 {[%emt 0:01:39]} 77. Nd6 {[%emt 0:00:22]} Nc7 {[%emt 0:00:35]} 78. Nc8+ {[%emt 0:00:19]} Kb8 {[%emt 0:00:16]} 79. a7+ {[%emt 0:00:27]} Kxc8 {[%emt 0:00:15]} 80. Kb6 {[%emt 0:00:37]} Na8+ {[%emt 0:00:05]} 1/2-1/2

[Event "Polish Youth 1st League 2022"]
[Site "Lublin"]
[Date "2022.06.30"]
[Round "6.18"]
[White "Kulczycka, Zofia"]
[Black "Tokarz, Gabriela"]
[Result "1/2-1/2"]
[ECO "B22"]
[WhiteElo "1564"]
[BlackElo "1469"]
[Annotator "NA RC"]
[PlyCount "78"]
[EventDate "2022.06.24"]
[EventType "team-tourn"]
[EventCountry "POL"]
[SourceTitle "playchess.com"]
[Source "ChessBase"]
[SourceQuality "1"]
[TimeControl "40/5400+30:1800+30"]

1. e4 {[%emt 0:00:03]} c5 {[%emt 0:00:04]} 2. c3 {[%emt 0:00:06]} d5 {[%emt 0:00:05]} 3. exd5 {[%emt 0:00:09]} Qxd5 {[%emt 0:00:06]} 4. d4 {[%emt 0:00:08]} Nc6 {[%emt 0:00:13]} 5. Nf3 {[%emt 0:00:20]} Nf6 {[%emt 0:00:16]} 6. dxc5 {[%emt 0:00:15]} Qxd1+ {[%emt 0:00:17]} 7. Kxd1 {[%emt 0:00:08]} Bg4 {[%emt 0:03:11]} 8. b4 {[%emt 0:03:33]} O-O-O+ {[%emt 0:07:15]} 9. Kc2 {[%emt 0:04:39]} Bxf3 {[%emt 0:03:28]} 10. gxf3 {[%emt 0:00:16]} g6 {[%emt 0:00:16]} 11. a3 {[%emt 0:17:27]} Bg7 {[%emt 0:02:29]} 12. Bf4 {[%emt 0:03:14]} Nd5 {[%emt 0:05:55]} 13. Bg3 {[%emt 0:06:04]} h5 {[%emt 0:02:09]} 14. h4 {[%emt 0:06:04]} a5 {[%emt 0:02:29]} 15. b5 {[%emt 0:07:08]} Ne5 {[%emt 0:01:56]} 16. f4 {[%emt 0:08:41]} Nd7 {[%emt 0:01:25]} 17. c6 {[%emt 0:02:52]} bxc6 {[%emt 0:02:35]} 18. bxc6 {[%emt 0:00:14]} Nc5 {[%emt 0:00:18]} 19. Bc4 {[%emt 0:08:20]} Ne4 {[%emt 0:02:11]} 20. f5 {[%emt 0:17:57]} Nxg3 {[%emt 0:01:46]} 21. Ba6+ {[%emt 0:00:43]} Kc7 {[%emt 0:00:17]} 22. fxg3 {[%emt 0:00:08]} Kxc6 {[%emt 0:02:58]} 23. fxg6 {[%emt 0:00:42]} Ne3+ {[%emt 0:00:23]} 24. Kb3 {[%emt 0:02:54]} fxg6 {[%emt 0:01:29]} 25. a4 {[%emt 0:01:23]} Nd5 {[%emt 0:03:35]} 26. Bb5+ {[%emt 0:00:31]} Kc5 {[%emt 0:01:19]} 27. Na3 {[%emt 0:02:06]} Rhf8 {[%emt 0:03:06]} 28. Rhf1 {[%emt 0:01:42]} Ne3 {[%emt 0:01:33]} 29. Rg1 {[%emt 0:02:11]} Rf3 {[%emt 0:01:29]} 30. Be2 {[%emt 0:00:46]} Rf2 {[%emt 0:00:14]} 31. Ra2 {[%emt 0:02:28]} Rh2 {[%emt 0:05:28]} 32. Nb5 {[%emt 0:01:11]} Rf8 {[%emt 0:03:28]} 33. Bd3 {[%emt 0:00:21]} Rxa2 {[%emt 0:01:28]} 34. Kxa2 {[%emt 0:00:06]} Rf2+ {[%emt 0:07:59]} 35. Kb3 {[%emt 0:00:36]} Rf6 {[%emt 0:08:26]} 36. Re1 {[%emt 0:00:48]} Nd5 {[%emt 0:01:03]} 37. Rg1 {[%emt 0:01:33]} Ne3 {[%emt 0:03:00]} 38. Re1 {[%emt 0:00:12]} Nd5 {[%emt 0:00:11]} 39. Rg1 {[%emt 0:00:59]} Ne3 {[%emt 0:01:22]} 1/2-1/2